Cogmind - Beta 15 @@@ ROGUE MODE // 2025.05.23 @ 15:12:02 // Winter2022/Polymind Player: Demo Result: Destroyed by H-77 Assassin with High-powered Shotgun Performance ------------- Evolutions (6) 3000 Regions Visited (15) 3000 Robots Destroyed (48) 240 Value Destroyed (1453) 1453 Prototype IDs (40) 800 Alien Tech Used (0) 0 Bonus (7397) 7397 TOTAL SCORE: 15780 Bonus ------- Polymind Skill 6995 Follower Combat Kills 78 Registered with UFD 300 Met Optimus in HQ 500 Met Zhirov 300 Friendly Fire -776 Cogmind --------- Core Integrity 0/1150 Matter 25/125 Energy 48/50 System Corruption 2% Temperature Cool (0) Movement Rolling (80) Location -4/Factory Parts ------- > --- POWER (1) -------- Light Ion Engine > --- PROPULSION (2) --- Wheel Wheel > --- UTILITY (1) ------ Medium Matter Pod > --- WEAPON (1) ------- (None) > --- INVENTORY (1) ---- (None) Peak State ------------ > --- POWER ------------ Heavy Deuterium Engine > --- PROPULSION ------- Combat Antigrav System > --- UTILITY ---------- Advanced Launcher Guidance Computer Improved Target Analyzer Experimental Core Analyzer Improved Armor Integrity Analyzer EX Chip 1 EX Chip 1 EX Chip 1 EX Chip 1 EX Chip 1 EX Chip 1 EX Chip 1 EX Chip 1 EX Chip 1 EX Chip 1 EX Chip 2 EX Chip 2 EX Chip 2 EX Chip 2 EX Chip 2 EX Chip 2 EX Chip 2 EX Chip 2 > --- WEAPON ----------- AWS/EX-DEC > --- INVENTORY -------- Deploy-a-Sentry [Rating: 99] Favorites ----------- Power Improved Deuterium Engine Engine Improved Deuterium Engine Power Core Neutrino Core Reactor Compact Particle Reactor Propulsion Light Treads Treads Light Treads Leg Enhanced Biometal Leg Wheel Wheel Hover Unit Combat Antigrav System Utility Improved Heat Sink Device Improved Heat Sink Storage Medium Storage Unit Processor Transport Network Coupler Hackware EX Chip 1 Protection Improved Light Armor Plating Weapon Flak Gun Energy Gun Gatling Laser Ballistic Gun Flak Gun Build | -11 -10 -10 -10 -9 -8 -7 -7 -7 -7 -5 -5 -5 -5 -4 -4 ------- Run | Yrd Mat Min Exi Min Mat Fac Sto Rec Scr Fac Upp Upp Zhi Pro Fac Slots Evolved . | . . . . . . . . . . . . . . . . Power . | . . . . . . . . . . . . . . . . Propulsion . | . . . . . . . . . . . . . . . . Utility . | . . . . . . . . . . . . . . . . Weapon . | . . . . . . . . . . . . . . . . Parts Attached . | . . . . . . . . . . . . . . . . Power . | . . . . . . . . . . . . . . . . Engine . | . . . . . . . . . . . . . . . . Core . | . . . . . . . . . . . . . . . . Reactor . | . . . . . . . . . . . . . . . . Propulsion . | . . . . . . . . . . . . . . . . Treads . | . . . . . . . . . . . . . . . . Leg . | . . . . . . . . . . . . . . . . Wheel . | . . . . . . . . . . . . . . . . Hover . | . . . . . . . . . . . . . . . . Flight . | . . . . . . . . . . . . . . . . Utility . | . . . . . . . . . . . . . . . . Device . | . . . . . . . . . . . . . . . . Storage . | . . . . . . . . . . . . . . . . Processor . | . . . . . . . . . . . . . . . . Hackware . | . . . . . . . . . . . . . . . . Protection . | . . . . . . . . . . . . . . . . Artifact . | . . . . . . . . . . . . . . . . Weapon . | . . . . . . . . . . . . . . . . Energy Gun . | . . . . . . . . . . . . . . . . Energy Cannon . | . . . . . . . . . . . . . . . . Ballistic Gun . | . . . . . . . . . . . . . . . . Ballistic Cannon . | . . . . . . . . . . . . . . . . Launcher . | . . . . . . . . . . . . . . . . Special Weapon . | . . . . . . . . . . . . . . . . Impact Weapon . | . . . . . . . . . . . . . . . . Slashing Weapon . | . . . . . . . . . . . . . . . . Piercing Weapon . | . . . . . . . . . . . . . . . . Special Melee Weapon . | . . . . . . . . . . . . . . . . Unidentified Prototypes . | . . . . . . . . . . . . . . . . Parts Lost 35 | . . . . . . . 7 7 . 6 . . . . 15 Power 5 | . . . . . . . . 1 . 2 . . . . 2 Propulsion 8 | . . . . . . . . 2 . 4 . . . . 2 Utility 15 | . . . . . . . 6 2 . . . . . . 7 Weapon 7 | . . . . . . . 1 2 . . . . . . 4 Highest Loss Streak 9 | . . . . . . . 7 7 . 6 . . . . 9 To Critical Strikes 3 | . . . . . . . . . . 1 . . . . 2 Average Backups 1 | . 1 6 4 . . . . . . . . . . 1 1 Power . | . . . . . . . . . . . . . . . . Propulsion . | . . . . . . . . . . . . . . . . Utility 1 | . 1 6 4 . . . . . . . . . . . . Weapon . | . . . . . . . . . . . . . . . . Tool/Special . | . . . . . . . . . . . . . . . . Unused Backups 18 | . . . 7 . . . . . . . . . 1 . 10 Power . | . . . . . . . . . . . . . . . . Propulsion . | . . . . . . . . . . . . . . . . Utility 8 | . . . 7 . . . . . . . . . 1 . . Weapon 9 | . . . . . . . . . . . . . . . 9 Tool/Special 1 | . . . . . . . . . . . . . . . 1 Average Slot Usage (%) 91 | . 37 100 99 96 96 96 88 97 73 62 87 96 80 100 80 Engine 9 | . 6 16 13 3 3 3 3 11 8 14 . . . . 5 Core 1 | . . . . . . . . . . . 9 12 7 . . Treads 20 | . 12 33 25 . . . . 23 18 . 20 25 14 . 2 Leg 1 | . . . . . . . . . . . . . 5 15 11 Wheel 1 | . . . . . . . . . . 26 . . . . 6 Device 19 | . 6 16 12 . . . . 24 18 . 20 25 25 30 16 Storage 3 | . 6 16 12 . . . . . . 14 . . 2 7 7 Processor 4 | . 6 16 15 15 15 15 15 . . 4 4 . 2 7 6 Hackware 4 | . . . 15 69 69 69 63 1 . . . . . . . Protection 7 | . . . . . . . . 11 8 . 9 12 9 7 2 Energy Gun 8 | . . . . 3 3 3 1 11 8 . 9 10 8 23 8 Ballistic Gun 6 | . . . . . . . . 11 8 . 9 10 . . 7 Peak Build Rating 99 | . 7 7 99 99 99 99 99 67 23 9 36 36 92 92 92 Average Rating 28 | . 2 7 27 99 99 99 86 23 16 3 31 34 47 92 45 On Entrance 46 | . . 7 7 99 99 99 99 67 23 . 2 36 24 92 92 Naked Turns 525 | . 45 . 2 . . . . 40 324 32 . . 42 . 40 Heaviest Build 60 | . 15 15 21 21 21 21 21 23 23 5 33 33 60 60 60 Greatest Support 65 | 3 46 46 46 21 21 21 21 40 40 20 46 46 60 60 65 Greatest Overweight (x) 3 | . . . . . . . . 1 . . . . . . 3 Average Overweight (x) . | . . . . . . . . . . . . . . . . Largest Inventory Capacity 10 | . 6 6 6 2 2 2 2 2 1 1 1 1 1 1 10 Average Capacity 1 | . 2 6 5 2 2 2 2 1 . . . 1 . 1 1 Most Carried 9 | . 6 6 6 1 1 1 1 1 1 . . 1 1 1 9 Average Carried 1 | . 2 6 4 1 1 1 1 . . . . . . 1 1 Final Capacity 6 | . 6 6 2 2 2 2 2 1 . . 1 1 1 1 1 Final Carried 6 | . 6 6 1 1 1 1 1 1 . . . 1 1 1 . Class Distribution -------------------- 59% | Sentry 17% | Hauler 7% | Old Warlord 6% | Assembler 4% | Cogmind Dominant Class ---------------- Cogmind | -10/Materials Hauler | -10/Mines Hauler | -10/Exiles Assembler | -9/Mines Assembler | -8/Materials Assembler | -7/Factory Assembler | -7/Storage Sentry | -7/Recycling Sentry | -7/Scraptown Worker | -5/Factory Sentry | -5/Upper Caves Sentry | -5/Upper Caves Sentry | -5/Zhirov Old Warlord | -4/Proximity Caves Old Warlord | -4/Factory Resources | -11 -10 -10 -10 -9 -8 -7 -7 -7 -7 -5 -5 -5 -5 -4 -4 ----------- Run | Yrd Mat Min Exi Min Mat Fac Sto Rec Scr Fac Upp Upp Zhi Pro Fac Matter Collected 686 | . . 576 . . . . . 52 . . 20 17 21 . . Remotely . | . . . . . . . . . . . . . . . . Salvage Created 1658 | . . 64 . 135 325 111 28 727 . . 25 112 34 . 97 Parts 70 | . . 9 . 8 13 11 2 9 . . 6 . . . 12 Haulers Intercepted . | . . . . . . . . . . . . . . . . Recyclers Shooed 4 | . . . . . . . . 4 . . . . . . . Parts Field Recycled . | . . . . . . . . . . . . . . . . Retrieved Matter . | . . . . . . . . . . . . . . . . Parts Self-Destructed 5 | . . . . . . . . . . . 5 . . . . Prevented 1 | . . . . . . . . . 1 . . . . . . Kills | -11 -10 -10 -10 -9 -8 -7 -7 -7 -7 -5 -5 -5 -5 -4 -4 ------- Run | Yrd Mat Min Exi Min Mat Fac Sto Rec Scr Fac Upp Upp Zhi Pro Fac Combat Hostiles Destroyed 28 | . . 2 . 2 9 4 . 3 . . 2 . 1 . 5 Melee 4 | . . 2 . . . . . . . . 2 . . . . Guns 17 | . . . . 2 6 4 . 3 . . . . . . 2 AOE 2 | . . . . . 1 . . . . . . . . . 1 Classes Destroyed 13 | . . 3 . . 3 1 1 1 . . 2 1 . . 1 Worker 1 | . . 1 . . . . . . . . . . . . . Builder 2 | . . . . . . . . 1 . . . . . . 1 Tunneler 2 | . . 2 . . . . . . . . . . . . . Recycler 9 | . . . . . 1 . . 8 . . . . . . . Operator 1 | . . . . . . . 1 . . . . . . . . Watcher 3 | . . . . . 1 1 . . . . 1 . . . . Swarmer 8 | . . . . . 8 . . . . . . . . . . Grunt 11 | . . 2 . 2 1 3 . . . . . . . . 3 Sentry 5 | . . . . . . 1 . 3 . . . . 1 . . Hunter 1 | . . . . . . . . . . . . . . . 1 Programmer 3 | . . . . . . . . . . . 2 . . . 1 Decomposer 1 | . . . . . . . . . . . . 1 . . . Packrat 1 | . . . . . . . . . . . . 1 . . . Samaritan 2 | . . . . . . . . . . . . 2 . . . Savage 1 | . . . . . . . . . . . 1 . . . . Best Kill Streak 6 | . . 2 . 2 6 3 1 2 . . 2 . 1 . 1 Combat Bots Only 5 | . . 2 . 2 5 3 . 2 . . 2 . 1 . 1 Max Kills in Single Turn 2 | . . 1 . 1 2 1 1 1 . . 1 1 1 . 1 Gunslinging . | . . . . . . . . . . . . . . . . Exploded 1 | . . . . . 1 . . . . . . . . . 1 Melee 1 | . . 1 . . . . . . . . 1 . . . . Uniques/NPCs Destroyed 1 | . . . . . . . . 1 . . . . . . . EX-DEC (-7/Recycling) Combat | -11 -10 -10 -10 -9 -8 -7 -7 -7 -7 -5 -5 -5 -5 -4 -4 -------- Run | Yrd Mat Min Exi Min Mat Fac Sto Rec Scr Fac Upp Upp Zhi Pro Fac Hostile Shots Fired 841 | . 59 6 . 4 29 14 85 207 9 94 11 2 . . 321 Missed 279 | . 16 1 . 1 12 9 44 53 4 41 1 . . . 97 Hits 562 | . 43 5 . 3 17 5 41 154 5 53 10 2 . . 224 Melee 2 | . . . . . . . . . . . . 2 . . . Projectile 560 | . 43 5 . 3 17 5 41 154 5 53 10 . . . 224 Critical Strikes 16 | . 1 . . . 1 . 1 . . 1 2 . . . 10 Part Disruptions 1 | . . . . . . . . . . . . . . . 1 Actively Blocked 1 | . . . . . . . . . . . . . . . 1 Damage Taken 7578 | . 360 58 . 33 135 62 380 1170 357 951 205 . . . 3867 Core 2671 | . 114 15 . 11 11 . 58 239 357 670 45 . . . 1151 Absorbed by Shields . | . . . . . . . . . . . . . . . . Ignored by Resistances 153 | . . . . . 99 . . . . . . . . . 54 Regen/Repaired (Parts) 94 | . . . . . . . . . . . . . . . 94 Core Remaining (%) 55 | 100 . . . 44 98 . . . 6 . . . . 28 . Volleys Fired 41 | . . . . . . . . 5 . . 7 . . . 29 Largest 3 | . . . . . . . . 2 . . 2 . . . 3 Hottest 270 | . . . . . . . . 108 . . 114 . . . 270 Shots Fired 150 | . . . . 4 38 13 4 11 . . 14 . . 1 65 Gun 150 | . . . . 4 38 13 4 11 . . 14 . . 1 65 Cannon . | . . . . . . . . . . . . . . . . Launcher . | . . . . . . . . . . . . . . . . Special . | . . . . . . . . . . . . . . . . Kinetic 31 | . . . . . . . . 6 . . 7 . . . 18 Thermal 28 | . . . . . . . . 5 . . 7 . . . 16 Explosive . | . . . . . . . . . . . . . . . . Electromagnetic 91 | . . . . 4 38 13 4 . . . . . . 1 31 Robot Hit Streak 24 | . . . . 6 19 18 3 13 . . 4 . . . 24 Robot Miss Streak 5 | . . . . 1 5 3 2 4 . . 3 . . . 3 Penetration Max . | . . . . . . . . . . . . . . . . Secondary Targets 1 | . . . . . . . . . . . . . . . 1 Max Gunslinging Chain 1 | . . . . . . . . . . . . . . . 1 Autonomous 59 | . . . . 4 38 13 4 . . . . . . . . Shots Hit Robots 121 | . . . . 4 32 12 3 10 . . 6 . . . 54 Core Hits 169 | . . 3 . 2 18 10 5 43 . . 7 . 20 . 61 Critical Kills . | . . . . . . . . . . . . . . . . Critical Parts Destroyed . | . . . . . . . . . . . . . . . . Critical Strikes 8 | . . . . 1 3 . 4 . . . . . . . . Corrupt 8 | . . . . 1 3 . 4 . . . . . . . . Melee Attacks . | . . . . . . . . . . . . . . . . Impact . | . . . . . . . . . . . . . . . . Slashing . | . . . . . . . . . . . . . . . . Piercing . | . . . . . . . . . . . . . . . . Sneak Attacks . | . . . . . . . . . . . . . . . . Combat Hostiles . | . . . . . . . . . . . . . . . . Follow-up Attacks . | . . . . . . . . . . . . . . . . Damage Inflicted 4678 | . . 110 . 86 661 349 95 763 114 . 187 61 973 . 1279 Guns 2226 | . . . . 86 546 349 81 239 . . 150 . . . 775 Cannons . | . . . . . . . . . . . . . . . . Explosions 481 | . . . . . 115 . . . . . . . . . 366 Melee . | . . . . . . . . . . . . . . . . Ramming 1971 | . . 110 . . . . 14 524 114 . 37 61 973 . 138 Kinetic 410 | . . . . . . . . 105 . . 77 . . . 228 Thermal 899 | . . . . . 115 . . 134 . . 73 . . . 577 Explosive . | . . . . . . . . . . . . . . . . Electromagnetic 1398 | . . . . 86 546 349 81 . . . . . . . 336 Impact . | . . . . . . . . . . . . . . . . Slashing . | . . . . . . . . . . . . . . . . Piercing . | . . . . . . . . . . . . . . . . Highest Corruption 14 | . . . . . . . . 1 14 . 1 1 1 1 2 Average Corruption 1 | . . . . . . . . 1 13 . 1 1 1 1 1 Corruption Purged . | . . . . . . . . . . . . . . . . Corruption Blocked . | . . . . . . . . . . . . . . . . Effects 52 | . . . . . . . . 28 4 . 3 3 9 1 4 Message Errors 10 | . . . . . . . . 4 . . 2 . 2 . 2 Matter Fused 17 | . . . . . . . . 11 . . 1 1 4 . . Heat Flow Errors 4 | . . . . . . . . 2 . . . 1 1 . . Energy Discharges 6 | . . . . . . . . 4 . . . . 2 . . Data Loss (minor) 6 | . . . . . . . . 4 1 . . . . . 1 Data Loss (major) 4 | . . . . . . . . 1 2 . . . . . 1 Misfires 3 | . . . . . . . . 2 . . . . . 1 . Alerts 2 | . . . . . . . . . 1 . . 1 . . . Overload Shots . | . . . . . . . . . . . . . . . . Overflow Damage 100 | . . . . . . . . 7 . . . 16 5 . 72 Projectiles . | . . . . . . . . . . . . . . . . Explosions 72 | . . . . . . . . . . . . . . . 72 Melee 28 | . . . . . . . . 7 . . . 16 5 . . Knockbacks 3 | . . 3 . . . . . . . . . . . . . Impact 3 | . . 3 . . . . . . . . . . . . . Kinetic . | . . . . . . . . . . . . . . . . Secondary . | . . . . . . . . . . . . . . . . Self-Inflicted Damage 136 | . . . . . 15 . 7 . 114 . . . . . . Shots 1 | . . . . . 1 . . . . . . . . . . Rammed 441 | . . 39 . . . . 3 162 . . 13 16 186 . 22 Targets Rammed 578 | . . 44 . . . . 3 174 . . 16 17 267 . 57 Kicked 116 | . . . . . . . . . . . . . 81 . 35 Crushed 21 | . . 5 . . . . . 12 . . 3 1 . . . Highest Temperature 259 | . 3 6 . 8 2 . 23 259 . 33 64 257 103 . 42 Average Temperature 39 | . 2 2 . 6 2 . 8 78 . 13 29 138 62 . 19 Received Heat Transfer 1283 | . 12 33 . 18 18 21 150 348 12 153 27 . . . 491 Siege Activations . | . . . . . . . . . . . . . . . . Martial Activations . | . . . . . . . . . . . . . . . . Shielding Activations . | . . . . . . . . . . . . . . . . Robots Disrupted 4 | . . . . . . . . . . . . . . . 4 Combat Hostiles 4 | . . . . . . . . . . . . . . . 4 Robots Corrupted 7 | . . . . . 2 . . . . . . 2 2 . 1 Combat Hostiles 4 | . . . . . 2 . . . . . . . 1 . 1 Parts Fried 8 | . . . . . 1 2 2 1 . . . 1 . . 1 Impact Corruptions 20 | . . . . . . . . 9 . . . 4 7 . . Robots Melted 1 | . . . . . . . . . . . . . . . 1 Combat Hostiles 1 | . . . . . . . . . . . . . . . 1 Parts Melted 5 | . . . . . . . . . . . . . . . 5 Heat Transferred 1304 | . . . . . 150 . . 275 . . 111 . . . 768 Parts Sabotaged . | . . . . . . . . . . . . . . . . Parts Stolen 2 | . . . . . . . . . . . . 2 . . . Parts Stripped . | . . . . . . . . . . . . . . . . Power Chain Reactions 2 | . . . . . 1 . . . . . . . . . 1 Alert | -11 -10 -10 -10 -9 -8 -7 -7 -7 -7 -5 -5 -5 -5 -4 -4 ------- Run | Yrd Mat Min Exi Min Mat Fac Sto Rec Scr Fac Upp Upp Zhi Pro Fac Maximum Alert Level 1 | . . . . . 1 . . . . 1 . . . . . Low Security (%) 98 | 100 100 100 . 100 51 100 100 100 . 97 . . . . 100 Level 1 1 | . . . . . 48 . . . . 2 . . . . . Level 2 . | . . . . . . . . . . . . . . . . Level 3 . | . . . . . . . . . . . . . . . . Level 4 . | . . . . . . . . . . . . . . . . Level 5 . | . . . . . . . . . . . . . . . . High Security . | . . . . . . . . . . . . . . . . Max Security . | . . . . . . . . . . . . . . . . Peak Influence 293 | . . 42 . 35 293 170 85 72 . 200 . . . . 66 Initial 130 | . . . . . 21 130 75 7 . . . . . . . Average 19 | . . 1 . 2 168 120 60 10 . 103 . . . . 8 Influence Increases 1691 | . . 65 . 55 417 107 65 353 . 340 55 . 40 . 194 Destroy 0b10 Robot/C 600 | . . 40 . 40 220 80 . 60 . . 40 . 20 . 100 Destroy 0b10 Robot/NC 125 | . . 15 . . 10 5 5 75 . . 5 . 5 . 5 Destroy Leader 104 | . . 10 . . 42 22 . . . . 10 . . . 20 Allied During Kill 22 | . . . . . 22 . . . . . . . . . . Successful Hack 51 | . . . . . . . . 18 . 5 . . . . 28 Select Force Hacks 200 | . . . . . . . . 200 . . . . . . . Disable Machine 45 | . . . . 15 15 . 15 . . . . . . . . Anti-Garrison Action 200 | . . . . . . . . . . 200 . . . . . Destroy Structure 29 | . . . . . 3 . . . . . . . . . 26 Lose Combat Pursuer 315 | . . . . . 105 . 45 . . 135 . . 15 . 15 Influence Decreases 1687 | . . 63 2 . 184 228 212 373 . 175 220 . 38 2 190 Entered New Map 363 | . . . 2 . 34 158 92 13 . . 62 . . 2 . Time Decay 1005 | . . 63 . . 90 70 50 340 . 114 140 . 38 . 100 Lost Part 240 | . . . . . . . 70 20 . 60 . . . . 90 Lost Ally 60 | . . . . . 60 . . . . . . . . . . Miscellaneous 19 | . . . . . . . . . . 1 18 . . . . Squads Dispatched 18 | . 1 . . . 2 1 1 . . 6 . . . . 7 Investigation 11 | . . . . . 1 1 1 . . 5 . . . . 3 Extermination . | . . . . . . . . . . . . . . . . Reinforcement 4 | . 1 . . . 1 . . . . 1 . . . . 1 Assault . | . . . . . . . . . . . . . . . . Garrison 3 | . . . . . . . . . . . . . . . 3 Intercept . | . . . . . . . . . . . . . . . . Searches Triggered . | . . . . . . . . . . . . . . . . Construction Impeded . | . . . . . . . . . . . . . . . . Haulers Reinforced . | . . . . . . . . . . . . . . . . Active Scanning Responses . | . . . . . . . . . . . . . . . . Cargo Convoy Interrupts . | . . . . . . . . . . . . . . . . Stealth | -11 -10 -10 -10 -9 -8 -7 -7 -7 -7 -5 -5 -5 -5 -4 -4 --------- Run | Yrd Mat Min Exi Min Mat Fac Sto Rec Scr Fac Upp Upp Zhi Pro Fac Distress Signals 6 | . . . . . 3 . . 1 . . . . . . 2 Communications Jammed . | . . . . . . . . . . . . . . . . Distress Signals . | . . . . . . . . . . . . . . . . Times Spotted 126 | . 15 2 . 3 19 6 8 6 1 31 4 2 2 . 27 Peak Tracking Total 17 | . 8 2 . 3 5 4 7 3 1 17 2 2 1 . 7 Tactical Retreats 9 | . . . . . 4 . 1 . . 2 . . 1 . 1 Traps | -11 -10 -10 -10 -9 -8 -7 -7 -7 -7 -5 -5 -5 -5 -4 -4 ------- Run | Yrd Mat Min Exi Min Mat Fac Sto Rec Scr Fac Upp Upp Zhi Pro Fac Traps Triggered 1 | . . . . . . . . . . . . . . . 1 Indirectly . | . . . . . . . . . . . . . . . . Trap Hack Attempts . | . . . . . . . . . . . . . . . . Triggered . | . . . . . . . . . . . . . . . . Disarmed . | . . . . . . . . . . . . . . . . Reprogrammed 6 | . . . . . . 6 . . . . . . . . . Reused . | . . . . . . . . . . . . . . . . Traps Extracted . | . . . . . . . . . . . . . . . . Installed . | . . . . . . . . . . . . . . . . Triggered . | . . . . . . . . . . . . . . . . Machines | -11 -10 -10 -10 -9 -8 -7 -7 -7 -7 -5 -5 -5 -5 -4 -4 ---------- Run | Yrd Mat Min Exi Min Mat Fac Sto Rec Scr Fac Upp Upp Zhi Pro Fac Machines Disabled 3 | . . . . 1 1 . 1 . . . . . . . . Max in Single Turn 1 | . . . . 1 1 . 1 . . . . . . . . Garrison Access 1 | . . . . . . . . . . 1 . . . . . Machines Repaired . | . . . . . . . . . . . . . . . . Machines Dismantled . | . . . . . . . . . . . . . . . . Machines Sabotaged 1 | . . . . . . . . 1 . . . . . . . Overloaded Fab Kills . | . . . . . . . . . . . . . . . . Hacking | -11 -10 -10 -10 -9 -8 -7 -7 -7 -7 -5 -5 -5 -5 -4 -4 --------- Run | Yrd Mat Min Exi Min Mat Fac Sto Rec Scr Fac Upp Upp Zhi Pro Fac Machines Accessed 37 | . . . . . 2 2 2 10 2 7 2 1 6 . 3 Terminals 13 | . . . . . 1 1 1 5 . 3 1 . . . 1 Fabricators 1 | . . . . . . . . . . 1 . . . . . Repair Stations 2 | . . . . . . . 1 . . . . . . . 1 Recycling Units 7 | . . . . . . . . 5 . 2 . . . . . Scanalyzers . | . . . . . . . . . . . . . . . . Garrison Access 4 | . . . . . 1 1 . . . 1 . . . . 1 Total Hacks 157 | . . . . . 13 17 10 48 17 14 5 1 24 . 8 Successful 113 | . . . . . 9 14 8 28 17 4 5 1 24 . 3 Failed 44 | . . . . . 4 3 2 20 . 10 . . . . 5 Catastrophic 5 | . . . . . . 1 . 2 . 2 . . . . . Database Lockouts . | . . . . . . . . . . . . . . . . Manual 93 | . . . . . 13 13 10 44 . 10 . . . . 3 Terminals 79 | . . . . . 6 10 9 42 . 5 4 . . . 3 Fabricators 3 | . . . . . . . . . . 3 . . . . . Repair Stations 3 | . . . . . . . 1 . . . . . . . 2 Recycling Units 9 | . . . . . . . . 6 . 3 . . . . . Scanalyzers . | . . . . . . . . . . . . . . . . Garrison Access 20 | . . . . . 7 7 . . . 3 . . . . 3 Terminal Hacks 69 | . . . . . 1 5 2 13 17 1 5 1 24 . . Record 41 | . . . . . 1 . . 3 17 . 4 . 16 . . Part Schematic 4 | . . . . . . . . . . . . . 4 . . Robot Analysis 1 | . . . . . . . . 1 . . . . . . . Prototype ID Bank 12 | . . . . . . . . 8 . . . . 4 . . Open Door 2 | . . . . . . . . . . . 1 1 . . . Open DSF 1 | . . . . . . . . . . 1 . . . . . Branch Access Points 2 | . . . . . . 1 1 . . . . . . . . Machine Index 1 | . . . . . . 1 . . . . . . . . . Alert Level 1 | . . . . . . . 1 . . . . . . . . Locate Traps 1 | . . . . . . 1 . . . . . . . . . Reprogram Traps 1 | . . . . . . 1 . . . . . . . . . Security Status 1 | . . . . . . 1 . . . . . . . . . Zone Layout 1 | . . . . . . . . 1 . . . . . . . Fabricator Hacks . | . . . . . . . . . . . . . . . . Repair Station Hacks 1 | . . . . . . . . . . . . . . . 1 Refit 1 | . . . . . . . . . . . . . . . 1 Recycling Unit Hacks . | . . . . . . . . . . . . . . . . Scanalyzer . | . . . . . . . . . . . . . . . . Garrison Access Hacks 1 | . . . . . . 1 . . . . . . . . . Coupler Status 1 | . . . . . . 1 . . . . . . . . . Unauthorized Hacks 42 | . . . . . 8 8 6 15 . 3 . . . . 2 Terminals 19 | . . . . . 1 2 5 10 . . . . . . 1 Track 1 | . . . . . . . 1 . . . . . . . . Assimilate 2 | . . . . . . . 1 1 . . . . . . . Botnet 7 | . . . . . 1 1 1 3 . . . . . . 1 Detonate 1 | . . . . . . . . 1 . . . . . . . Disrupt 3 | . . . . . . . 1 2 . . . . . . . Operators 3 | . . . . . . 1 1 1 . . . . . . . Sabotage 2 | . . . . . . . . 2 . . . . . . . Fabricators . | . . . . . . . . . . . . . . . . Repair Stations 2 | . . . . . . . 1 . . . . . . . 1 Patch 2 | . . . . . . . 1 . . . . . . . 1 Recycling Units 7 | . . . . . . . . 5 . 2 . . . . . Tunnel 5 | . . . . . . . . 5 . . . . . . . Fedlink 2 | . . . . . . . . . . 2 . . . . . Scanalyzers . | . . . . . . . . . . . . . . . . Garrison Access 14 | . . . . . 7 6 . . . 1 . . . . . Broadcast 2 | . . . . . 1 1 . . . . . . . . . Restock 1 | . . . . . 1 . . . . . . . . . . Decoy 2 | . . . . . 1 1 . . . . . . . . . Redirect 2 | . . . . . 1 1 . . . . . . . . . Reprogram 2 | . . . . . 1 1 . . . . . . . . . Intercept 2 | . . . . . 1 1 . . . . . . . . . Watchers 2 | . . . . . 1 1 . . . . . . . . . Jam 1 | . . . . . . . . . . 1 . . . . . Data Cores Recovered 1 | . . . . . . . 1 . . . . . . . . Used . | . . . . . . . . . . . . . . . . Hacking Detections 18 | . . . . . 2 2 1 5 . 6 . . . . 2 Full Trace Events 8 | . . . . . . 1 . 3 . 2 . . . . 2 Feedback Events 1 | . . . . . . . . 1 . . . . . . . Corruption 1 | . . . . . . . . 1 . . . . . . . Feedback Blocked 2 | . . . . . . 2 . . . . . . . . . Robot Schematics Acquired . | . . . . . . . . . . . . . . . . Robots Built . | . . . . . . . . . . . . . . . . Authchips . | . . . . . . . . . . . . . . . . Time . | . . . . . . . . . . . . . . . . Total Robot Build Rating . | . . . . . . . . . . . . . . . . Part Schematics Acquired 4 | . . . . . . . . . . . . . 4 . . Parts Built . | . . . . . . . . . . . . . . . . Authchips . | . . . . . . . . . . . . . . . . Time . | . . . . . . . . . . . . . . . . Total Part Build Rating . | . . . . . . . . . . . . . . . . Parts Repaired . | . . . . . . . . . . . . . . . . Time . | . . . . . . . . . . . . . . . . Parts Recycled . | . . . . . . . . . . . . . . . . Recycled Matter . | . . . . . . . . . . . . . . . . Retrieved Matter . | . . . . . . . . . . . . . . . . Retrieved Components . | . . . . . . . . . . . . . . . . Parts Scanalyzed . | . . . . . . . . . . . . . . . . Part Schematics Acquired . | . . . . . . . . . . . . . . . . Parts Damaged . | . . . . . . . . . . . . . . . . Bothacking | -11 -10 -10 -10 -9 -8 -7 -7 -7 -7 -5 -5 -5 -5 -4 -4 ------------ Run | Yrd Mat Min Exi Min Mat Fac Sto Rec Scr Fac Upp Upp Zhi Pro Fac Used RIF Installer . | . . . . . . . . . . . . . . . . Robots Hacked 10 | . 1 . . . . . . 2 . 2 1 . . . 4 Non-combat 6 | . 1 . . . . . . . . 2 . . . . 3 Combat 4 | . . . . . . . . 2 . . 1 . . . 1 Robot Hacks Applied 14 | . 1 . . . . . . 2 . 3 1 . . . 7 find_chute 3 | . . . . . . . . . . 1 . . . . 2 find_fabricator 1 | . . . . . . . . . . . . . . . 1 find_dsf 1 | . . . . . . . . . . . . . . . 1 locate_stockpiles 2 | . 1 . . . . . . . . . . . . . 1 map_route 1 | . . . . . . . . . . 1 . . . . . mark_security 1 | . . . . . . . . . . 1 . . . . . find_shortcuts 4 | . . . . . . . . 2 . . 1 . . . 1 find_garrison 1 | . . . . . . . . . . . . . . . 1 Relay Couplers Released 4 | . . . . . 4 . . . . . . . . . . Programmers 4 | . . . . . 4 . . . . . . . . . . Fabnet Peak Effective % . | . . . . . . . . . . . . . . . . Robots Rewired . | . . . . . . . . . . . . . . . . Allies Hacked . | . . . . . . . . . . . . . . . . Hacks Repelled . | . . . . . . . . . . . . . . . . Allies | -11 -10 -10 -10 -9 -8 -7 -7 -7 -7 -5 -5 -5 -5 -4 -4 -------- Run | Yrd Mat Min Exi Min Mat Fac Sto Rec Scr Fac Upp Upp Zhi Pro Fac Total Allies 3 | . . . . . 3 . . . . . . . . . . Largest Group 3 | . . . . . 3 . . . . . . . . . . Highest-Rated Group 48 | . . . . . 48 . . . . . . . . . . Highest-Rated Ally 16 | . . . . . 16 . . . . . . . . . . Total Orders . | . . . . . . . . . . . . . . . . Ally Attacks 17 | . . . . . 17 . . . . . . . . . . Total Damage 109 | . . . . . 109 . . . . . . . . . . Kills 2 | . . . . . 2 . . . . . . . . . . Allies Corrupted . | . . . . . . . . . . . . . . . . Allies Melted . | . . . . . . . . . . . . . . . . Intel | -11 -10 -10 -10 -9 -8 -7 -7 -7 -7 -5 -5 -5 -5 -4 -4 ------- Run | Yrd Mat Min Exi Min Mat Fac Sto Rec Scr Fac Upp Upp Zhi Pro Fac Active Infowar (turns) 1981 | . 25 1629 173 . . . . . . 47 67 . . . 40 Optics 114 | . . . . . . . . . . 47 67 . . . . T.N.C. 1867 | . 25 1629 173 . . . . . . . . . . . 40 Robot Analysis Total 7 | . 1 . . . . . . 1 . 2 1 . . . 2 Derelict Logs Recovered 6 | . . 1 . . . . . . . . 1 2 . 2 . Drone Launches . | . . . . . . . . . . . . . . . . Drone Recoveries . | . . . . . . . . . . . . . . . . Exploration | -11 -10 -10 -10 -9 -8 -7 -7 -7 -7 -5 -5 -5 -5 -4 -4 ------------- Run | Yrd Mat Min Exi Min Mat Fac Sto Rec Scr Fac Upp Upp Zhi Pro Fac Turns Passed 10712 | 9 70 1629 226 32 184 157 104 4223 1214 296 463 468 906 265 466 Spaces Moved 7544 | 18 105 953 174 38 206 168 127 2511 1151 430 350 275 454 266 318 Core 1142 | 18 88 . 4 . . . . 23 595 129 133 . 70 . 82 Treads 4623 | . 17 953 108 . . . . 2350 556 . 217 275 144 . 3 Legs 636 | . . . . . . . . . . . . . 240 266 130 Wheels 360 | . . . . . . . . . . 257 . . . . 103 Hover 783 | . . . 62 38 206 168 127 138 . 44 . . . . . Flight . | . . . . . . . . . . . . . . . . Fastest Speed 50 | 50 50 160 50 80 80 80 80 50 50 50 50 160 50 100 50 Average Speed 126 | 50 67 160 128 80 80 80 80 154 103 68 118 160 111 100 84 Slowest Speed 200 | 50 160 160 160 80 80 80 80 160 160 80 160 160 160 100 200 Overloaded Moves . | . . . . . . . . . . . . . . . . Propulsion Burnouts . | . . . . . . . . . . . . . . . . Robots Hopped . | . . . . . . . . . . . . . . . . Potential Cave-ins . | . . . . . . . . . . . . . . . . Cave-ins Triggered . | . . . . . . . . . . . . . . . . Exploration Rate (%) 41 | 3 24 99 50 18 32 5 26 99 61 20 50 48 62 54 11 Regions Visited 15 Branch Regions 10 Pre-discovered Areas 15 | . . 1 . . . . . 5 4 1 . 1 3 . . Known Exits Taken 7 | . . . . . 1 1 1 . 1 1 1 . . 1 . Unknown Exits Taken 8 | 1 1 1 1 1 . . . 1 . . . 1 1 . . Scrap Searched 4 | . . 1 . . . . . . . . 1 1 . 1 . Spaces Dug 1 | . . . . . . . . . . . 1 . . . . Terrain Destroyed 18 | . . . . . 2 . . . . . 2 . . . 14 Melee . | . . . . . . . . . . . . . . . . Projectile 3 | . . . . . . . . . . . 2 . . . 1 AOE 15 | . . . . . 2 . . . . . . . . . 13 Terrain Rammed 18 | . . . . . . . . . 18 . . . . . . Walls Destroyed . | . . . . . . . . . . . . . . . . Machines Disabled . | . . . . . . . . . . . . . . . . Actions | -11 -10 -10 -10 -9 -8 -7 -7 -7 -7 -5 -5 -5 -5 -4 -4 --------- Run | Yrd Mat Min Exi Min Mat Fac Sto Rec Scr Fac Upp Upp Zhi Pro Fac Total 8371 | 17 104 1031 175 39 224 190 129 2739 1177 429 377 293 742 265 440 Wait 166 | . . 35 . 2 19 23 . 41 9 . 4 1 19 . 13 Move 7529 | 17 104 952 173 37 205 167 126 2510 1150 429 349 274 453 265 318 Hop . | . . . . . . . . . . . . . . . . Pick Up 5 | . . . 1 . . . . 2 . . . 1 1 . . Fast Attach . | . . . . . . . . . . . . . . . . Attach . | . . . . . . . . . . . . . . . . Detach . | . . . . . . . . . . . . . . . . Swap . | . . . . . . . . . . . . . . . . Drop 1 | . . . 1 . . . . . . . . . . . . Fire 41 | . . . . . . . . 5 . . 7 . . . 29 Melee . | . . . . . . . . . . . . . . . . Ram 25 | . . . . . . . 3 4 18 . . . . . . Kick 116 | . . . . . . . . . . . . . 81 . 35 Crush 455 | . . 44 . . . . . 170 . . 16 17 186 . 22 Escape Stasis . | . . . . . . . . . . . . . . . . Rewire 33 | . . . . . . . . 7 . . 1 . 2 . 23 Trap . | . . . . . . . . . . . . . . . . Miscellaneous . | . . . . . . . . . . . . . . . . Route ------- -11/Scrapyard -10/Materials -10/Mines (discovered 3 exits: [*Mat x2] / [*Exi]) -10/Exiles -9/Mines -8/Materials -7/Factory (discovered 4 exits: *Sto x2 / Low x2) -7/Storage -7/Recycling (discovered 2 exits: *Fac / *Scr) -7/Scraptown -5/Factory (discovered 4 exits: *Fac x3 / *Upp) -5/Upper Caves -5/Upper Caves (discovered 2 exits: *Fac / *Zhi) -5/Zhirov -4/Proximity Caves -4/Factory (discovered 1 exit: Res) History --------- Turn | Location | Event 4 | -11/Scrapyard | Discovered new exit (range 14) 10 | -11/Scrapyard | Entered Materials 48 | -10/Materials | Discovered new exit (range 15) 80 | -10/Materials | Entered Mines 86 | -10/Mines | Assembled infested the area 224 | -10/Mines | Learned location of 1 exit from Materials 305 | -10/Mines | YI-UF0 nonchalantly dropped a Grenade Launcher on the ground 509 | -10/Mines | Discovered new exit (range 5) 664 | -10/Mines | Discovered new exit (range 8) 677 | -10/Mines | Core integrity fell below 50% 1167 | -10/Mines | Discovered new exit (range 9) 1169 | -10/Mines | Learned location of Storage (-7) 1709 | -10/Mines | Entered Exiles 1749 | -10/Exiles | Met 8R-AWN 1778 | -10/Exiles | Met EX-HEX 1866 | -10/Exiles | Met EX-DEC 1884 | -10/Exiles | Took control of EX-DEC (ally) 1915 | -10/Exiles | Discovered new exit (range 14) 1935 | -10/Exiles | Left Exiles lab with Deploy-a-Sentry 1935 | -10/Exiles | Entered Mines 1962 | -9/Mines | Discovered new exit (range 8) 1967 | -9/Mines | Entered Materials 1968 | -8/Materials | Identified exit to Factory 2135 | -8/Materials | Lost 3 allies 2151 | -8/Materials | Entered Factory 2182 | -7/Factory | Discovered new exit (range 16) 2234 | -7/Factory | Identified exit to Storage 2234 | -7/Factory | Identified exit to Lower Caves 2308 | -7/Factory | Entered Storage 2339 | -7/Storage | Identified exit to Recycling 2410 | -7/Storage | Used back door to open Recycling access 2412 | -7/Storage | Entered Recycling 2426 | -7/Recycling | Lost 7 parts (6u1w) 2588 | -7/Recycling | Destroyed EX-DEC 2600 | -7/Recycling | Found Deploy-a-Sentry 2995 | -7/Recycling | Discovered new exit (range 15) 3715 | -7/Recycling | Lost 7 parts (1p2n2u2w) 6595 | -7/Recycling | Scanned before Scraplab entrance 6619 | -7/Recycling | Entered Scraplab 6632 | -7/Recycling | Discovered new exit (range 2) 6635 | -7/Recycling | Entered Scraptown 6635 | -7/Scraptown | System corruption cleaned by C-Scrubber 6752 | -7/Scraptown | Heard Great Nut preacher, LISTEN AND RECITE! 6821 | -7/Scraptown | Visited Cyclists 6853 | -7/Scraptown | Visited Fellowship of the Rings 6911 | -7/Scraptown | Visited Bundlers 6995 | -7/Scraptown | Visited IN-MT5's Study 7058 | -7/Scraptown | Visited Junk Repository 7091 | -7/Scraptown | Visited UFD Registry 7091 | -7/Scraptown | Registered with UFD as "Flexithruster" 7103 | -7/Scraptown | Visited The Evicted 7239 | -7/Scraptown | Received an X-ray algorithm 7247 | -7/Scraptown | Visited Infowarlord's Domain 7394 | -7/Scraptown | Visited Botcube Research 7432 | -7/Scraptown | Visited Research Penetration Think Tank 7475 | -7/Scraptown | Visited Cartography Club 7593 | -7/Scraptown | Learned location of Upper Caves (-4) 7593 | -7/Scraptown | Learned location of Zion (-7) 7593 | -7/Scraptown | Learned 8 Research zone layouts 7593 | -7/Scraptown | Learned 4 Mines zone layouts 7593 | -7/Scraptown | Learned 4 Storage zone layouts 7593 | -7/Scraptown | Learned 20 Lower Caves zone layouts 7593 | -7/Scraptown | Learned 20 Upper Caves zone layouts 7593 | -7/Scraptown | Learned 24 Upper Caves zone layouts 7593 | -7/Scraptown | Learned 4 Hub_04(d) zone layouts 7593 | -7/Scraptown | Learned Materials emergency access door positions 7593 | -7/Scraptown | Learned location of 3 exits from Factory 7593 | -7/Scraptown | Learned location of 2 exits from Research 7593 | -7/Scraptown | Identified exit to Factory 7619 | -7/Scraptown | Visited Scrap Suit Storage 7728 | -7/Scraptown | Core integrity fell below 50% 7737 | -7/Scraptown | System corruption reached 10% 7742 | -7/Scraptown | Core integrity fell below 20% 7820 | -7/Scraptown | Met Optimus 7820 | -7/Scraptown | Accepted into 0bPrime 7849 | -7/Scraptown | System corruption cleaned by C-Scrubber 7849 | -7/Scraptown | Entered Factory 7850 | -5/Factory | Identified exit to Upper Caves 7850 | -5/Factory | Identified exit to Factory 7865 | -5/Factory | Loaded intel: 8 recycling unit locations 7872 | -5/Factory | Identified exit to DSF 8026 | -5/Factory | Spotted B-75 Beast 8095 | -5/Factory | Discovered exit to Factory (range 14) 8107 | -5/Factory | Core integrity fell below 50% 8119 | -5/Factory | Learned location of Protoforge (-2) 8145 | -5/Factory | Entered Upper Caves 8146 | -5/Upper Caves | Identified exit to Upper Caves 8154 | -5/Upper Caves | Lost 6 parts (2p4n) 8166 | -5/Upper Caves | Learned location of 1 exit from Factory 8166 | -5/Upper Caves | Learned location of 1 exit from Research 8166 | -5/Upper Caves | Learned Armory security intel 8168 | -5/Upper Caves | Learned Factory interactive machine intel 8211 | -5/Upper Caves | Attracted the attention of an 0b10 checkpoint 8286 | -5/Upper Caves | Encountered a Warlord checkpoint 8608 | -5/Upper Caves | Entered another Upper Caves area 8610 | -5/Upper Caves | Discovered new exit (range 140) 8957 | -5/Upper Caves | Learned Factory terminal intel 9013 | -5/Upper Caves | Spotted IL-PNA(f) 9014 | -5/Upper Caves | Encountered a Master Thief 9014 | -5/Upper Caves | Spotted CG-UO6(f) 9015 | -5/Upper Caves | Encountered a Master Thief 9016 | -5/Upper Caves | KE Penetrator stolen by Master Thief 9017 | -5/Upper Caves | Wave Gun stolen by Master Thief 9065 | -5/Upper Caves | Learned location of Warlord (-4) 9076 | -5/Upper Caves | Entered Zhirov 9076 | -5/Zhirov | Discovered new exit (range 3) 9105 | -5/Zhirov | Met Zhirov 9140 | -5/Zhirov | Learned location of Testing (-2) 9140 | -5/Zhirov | Learned location of Command (-1) 9169 | -5/Zhirov | Zhirov requested help retrieving the SGEMP Prototype 9658 | -5/Zhirov | Took control of Perun (ally) 9751 | -5/Zhirov | Found Alien Artifact 9982 | -5/Zhirov | Entered Proximity Caves 9983 | -4/Proximity Caves | Learned 8 Research zone layouts 10247 | -4/Proximity Caves | Entered Factory 10248 | -4/Factory | Identified exit to Research 10249 | -4/Factory | Loaded intel: 53 interactive machine locations 10250 | -4/Factory | Loaded intel: 25 terminal locations 10430 | -4/Factory | Lost 4 parts (1u3w) 10456 | -4/Factory | Core integrity fell below 50% 10485 | -4/Factory | Lost 9 parts (1p2n5u1w) 10524 | -4/Factory | Core integrity fell below 20% 10713 | -4/Factory | Destroyed by H-77 Assassin with High-powered Shotgun Last Messages --------------- 10668_ Kicked G-67 Veteran out of the way. 10669_ Slug penetrates G-67 Veteran. 10669_ Imp. Phase Shifter destroyed. 10672_ G-67 Veteran destroyed. 10683_ :SN>QGJX&B7MF 219KDGJGQN>XFVF8STHBH5 10698_ Triggered Blade Trap. 10698_ Massive razor-sharp blades shoot up from within the floor. 10698_ Coil Gun severed. 10703_ Released control of H-77 Assassin. 10704_ Took control of K-01 Serf. 10704_ Penetrated by Slug. 10705_ K-01 Serf latches onto H-77 Assassin. 10705_ K-01 Serf pushes H-77 Assassin. 10711_ Cleaned Neutrino Reactor. 10711_ Cleaned Terminal. 10712_ K-01 Serf pushes H-77 Assassin. 10713_ K-01 Serf releases H-77 Assassin into floor hatch. 10713_ Slug penetrates Neutrino Reactor. Map ----- +----------------------------------------------------+ | | | | | | | | | | | | | | | | | | | | | ?????????????????????????????????????????????????? | | ?????????????????????????"""""???????????????????? | | ?????????????????????????""T""???????????????????? | | ?????????????????????????????????????????????????? | | ?????????????????????????????????????????????????? | | ?????????????????????????????????????????????????? | | ?????????????????????????????????????????????????? | | ?????????????????????????????????????????????????? | | ?????????????????????###########+#???????????????? | | ????????????????????? ???????????????? | | ???????????????? ? ????????????????? | | ?????????????? ? ????????????????? | | ?????????????? """ """ ?????????????????? | | ??????????????? """ """ ???????????????????? | | ???????????????#^ """ """ ""#???????????????????"" | | ???????????????# hh ^ k""#???????????????????"T | | ???????????????# """k""" T"#???????????????????"" | | ???????????????# """ """ ""#???????????????????"" | | ???????????????# """ """ ""#????????????????????? | | ???????????????# #????????????????????? | | ???????????????# #????????????????????? | | ???????????????# ###+####????????????????????? | | ????????######## #???????????????????????????? | | ????????# #???????????????????????????[ | | ????????# #???????????????????????????? | | ????????# #???????????????????????????? | | ????????# #???????????????????????????? | | ????????# #???????????????????????????? | | ????????# ########???????????????????????????? | | ????????# [#??????????????????????????????????? | | ????????# #??????????????????????????????????? | | ????????# #??????????????????????????????????? | | ????????# #???????????????##############?????? | | ????????# #???????????????# #?????? | | ????????# #?????########### #?????? | | ????????# #?????# # #?????? | | ???###### ####### ! # #?????? | | ?# # #?????? | | ?# # #?????? | | ?# ! + #???"T" | +----------------------------------------------------+ Best States ------------- Heat Dissipation 110 Energy Generation 68 Energy Capacity 1035 Matter Stores 250 Matter Capacity 250 Sight Range 18 Terrain Scan Density 10 Additional Mass Support 9 EM Shielding 4 Armor Coverage 400 Resistance: KI 25 Resistance: EX 50 Resistance: EM 90 Resistance: I 25 Phase Shifting 10 Evasion (%) 55 Targeting Accuracy 8 Launcher Accuracy 40 Target Analysis 6 Core Analysis 8 Armor Integrity Analysis 40 Recoil Reduction 2 Offensive Hacking 70 Defensive Hacking 56 Item Schematics ----------------- Assault Drone Bay | -5/Zhirov | Free Exp. Heat Sink | -5/Zhirov | Free Exp. Optical Array | -5/Zhirov | Free Imp. Arc Thrower | -5/Zhirov | Free Robot Schematics ------------------ None Fabricated ------------ Nothing Repaired ---------- Nothing Alien Tech Used ----------------- None Achievements -------------- None Challenges ------------ None Polymind | -11 -10 -10 -10 -9 -8 -7 -7 -7 -7 -5 -5 -5 -5 -4 -4 ---------- Run | Yrd Mat Min Exi Min Mat Fac Sto Rec Scr Fac Upp Upp Zhi Pro Fac Hosts 12 | . 1 . 1 . . . . 2 . 2 1 . 1 . 4 Combat Hostiles 4 | . . . . . . . . 2 . . 1 . . . 1 Allies 1 | . . . 1 . . . . . . . . . . . . Unique Host Classes 7 | . 1 . 1 . . . . 1 . 2 . . 1 . 1 Average Host Suspicion 72 | . 100 87 . 15 81 51 75 95 . 62 59 3 72 40 93 Unsuspicious Activity 752 | . . . 16 . . . . 120 . 80 117 170 220 . 29 Returns to Shadow 2 | . . . . . . . . . . . 1 . 1 . . Fuzzy Dispatches . | . . . . . . . . . . . . . . . . Protomatter Created 474 | . . 72 . . 20 79 . 27 . . 74 . 30 . 172 Used 651 | . 5 . 33 . . . . 102 . 28 74 . 320 . 89 Decayed 158 | . . 72 . . 10 . . . . . 20 . . . 56 Highest Spend 320 | . 5 . 33 . . . . 51 . 23 74 . 320 . 74 Top 5 Hosts by Kills: EX-DEC (-10/Exiles: 15) Perun (-5/Zhirov: 4) A-02 Transporter (-10/Materials: 2) Y-54 Guardian (-7/Recycling: 2) Y-64 Sentinel (-5/Upper Caves: 2) Game ------ Seed FissionDisassembledClaws Manual? 0 Play Time 00:52:51 Cumulative 185.1 hours Start 2025.05.23 @ 14:19:23 End 2025.05.23 @ 15:12:02 Sessions 1 Manual Loads 0 Difficulty Rogue Special Mode Winter2022/Polymind Game No. 210 Rogue 210 Adventurer 0 Explorer 0 Win Type - Total 1 Types 1/0/0/0/0/0/0/0/0/0 Lore% 71 Gallery% 70 Achievement% 61 Wizard Run 0 Options --------- Layout 1 ASCII 0 Keyboard 0 Movement Numpad Keybinds 0 Fullscreen 1 Font 24/Smallcaps Map View 50x35 Zoom Use 0% Tactical HUD 1 Map Filters NONE Filters NONE Steam 1 RUN: 046880d9-51a1-46e6-a1cc-2594e6f2bf7c